fUSD/lending_fUSD_20260202
["ID","MTS","AMOUNT","RATE_DAILY","PERIOD"]
[404299062,1770046244518,-500.0,0.00016438,2]
[404299063,1770046244527,-500.0,0.00016438,2]
[404299064,1770046244536,-500.0,0.00016438,2]
[404299065,1770046244548,-500.0,0.00016438,2]
[404299066,1770046244557,-500.0,0.00016473,2]
[404299067,1770046244566,-150.0,0.00016473,2]
[404299068,1770046244575,-300.0,0.00016473,2]
[404299069,1770046244585,-164.46513231,0.00016473,2]
[404299070,1770046244728,-242.15909246,0.00016493,2]
[404299071,1770046244757,-1000.0,0.00016515,2]
[404299072,1770046244767,-251.11897888,0.00016548,2]
[404299073,1770046244776,-156.27581707,0.00016554,2]
[404299074,1770046244786,-1500.0,0.00016568,2]
[404299075,1770046244799,-1500.0,0.00016568,2]
[404299076,1770046244809,-1500.0,0.00016568,2]
[404299077,1770046244823,-578.63346181,0.00016568,2]
[404299078,1770046244833,-382.63613861,0.00016568,2]
[404299079,1770046244843,-1500.0,0.00016568,2]
[404299080,1770046244853,-398.81271673,0.00016568,2]
[404299081,1770046244863,-1500.0,0.00016568,2]
[404299082,1770046244874,-1501.09498552,0.00016568,2]
[404299083,1770046244884,-1500.0,0.00016568,2]
[404299084,1770046244896,-503.42877829,0.00016568,2]
[404299085,1770046244906,-1501.31050168,0.00016568,2]
[404299086,1770046244916,-816.57387029,0.00016572,2]
[404299087,1770046244926,-385.64740788,0.00016572,2]
[404299088,1770046244935,-260.4103811,0.00016603,2]
[404299089,1770046244945,-270.0455652,0.00016658,2]
[404299090,1770046244954,-150.0,0.00016673,2]
[404299091,1770046244964,-150.0,0.00016673,2]
[404299092,1770046244974,-1913.88588039,0.00016674,2]
[404299093,1770046244983,-6951.0311883,0.00016703,2]
[404299094,1770046244992,-150.0,0.00016712,2]
[404299095,1770046245001,-150.0,0.00016712,2]
[404299096,1770046245011,-150.0,0.00016712,2]
[404299097,1770046245020,-150.0,0.00016712,2]
[404299098,1770046245030,-2315.82,0.00016712,2]
[404299099,1770046245039,-150.0,0.00016712,2]
[404299100,1770046245050,-389.16,0.00016712,2]
[404299101,1770046245059,-280.03725112,0.00016713,2]
[404299102,1770046245069,-2835.0,0.0001672,2]
[404299103,1770046245078,-150.0,0.00016728,2]
[404299104,1770046245087,-290.39862941,0.00016768,2]
[404299105,1770046245096,-200.0,0.00016783,2]
[404299106,1770046245106,-500.0,0.00016802,2]
[404299107,1770046245115,-500.0,0.00016802,2]
[404299108,1770046245124,-500.0,0.00016802,2]
[404299109,1770046245133,-500.0,0.00016802,2]
[404299110,1770046245142,-181.08010149,0.00016821,2]
[404299111,1770046245152,-217.15233878,0.00016821,2]
[404299112,1770046245161,-1481.23780761,0.00016821,2]
[404299113,1770046245170,-217.15233878,0.00016821,2]
[404299114,1770046245180,-891.61887448,0.00016821,2]
[404299115,1770046245189,-301.1433787,0.00016823,2]
[404299116,1770046245198,-277.0,0.00016828,2]
[404299117,1770046245206,-159.65843549,0.00016841,2]
[404299118,1770046245216,-500.0,0.00016875,2]
[404299119,1770046245225,-172.53,0.00016904,2]
[404299120,1770046245234,-7954.055,0.00016947,2]
[404299121,1770046245244,-258.30346192,0.00016947,2]
[404299122,1770046245254,-1913.88588039,0.0001696,2]
[404299123,1770046245263,-196.73,0.00016963,2]
[404299124,1770046245273,-347.0,0.00017,2]
[404299125,1770046245282,-2205.73614126,0.00017,3]
[404299126,1770046245291,-35127.99690791,0.00017,2]
[404299130,1770046245899,-1242.72301688,0.00016282,2]
[404299131,1770046245910,-3693.62922405,0.00016282,2]
[404299132,1770046245921,-701.82666919,0.00016282,2]
[404299133,1770046245932,-14466.48416933,0.00017,2]
[404299134,1770046245943,-39294.29312355,0.00017,2]
[404299135,1770046245996,-1001.403706,0.00017,2]
[404299139,1770046246450,-8250.79561771,0.00017,2]
[404299140,1770046246462,-1259.82,0.00017,2]
[404299141,1770046246474,-1890.52788908,0.00017,2]
[404299142,1770046246500,-388.08351706,0.00017,2]
[404299282,1770047024850,4367.0,0.00014,5]
[404299375,1770047432288,-343.2206,0.00012182,2]
[404299377,1770047432298,-158.68872341,0.00012182,2]
[404299379,1770047432307,-317.59807108,0.00012182,2]
[404299380,1770047432316,-250.0,0.00012182,2]
[404299381,1770047432326,-250.0,0.00012191,2]
[404299382,1770047432335,-189.36,0.000122,2]
[404299383,1770047432344,-272.86191395,0.00012662,2]
[404299384,1770047432354,-2041.16081027,0.000127,2]
[404299385,1770047432365,-1152.87064898,0.000127,2]
[404299386,1770047432377,-1672.28,0.00012826,2]
[404299387,1770047432386,-150.0,0.00012966,2]
[404299388,1770047432395,-1852.42,0.00013137,2]
[404299389,1770047432405,-1200.0,0.0001315,2]
[404299390,1770047432414,-1450.37078152,0.00013151,2]
[404299391,1770047432425,-1487.95536,0.00013151,2]
[404299392,1770047432436,-364.84385848,0.00013151,2]
[404299393,1770047432445,-300.0,0.0001333,2]
[404299394,1770047432454,-500.0,0.00013331,2]
[404299395,1770047432463,-300.0,0.00013396,2]
[404299396,1770047432473,-253.0,0.00013396,2]
[404299397,1770047432483,-300.0,0.00013397,2]
[404299398,1770047432492,-300.0,0.00013397,2]
[404299399,1770047432501,-1002.16615002,0.00013398,2]
[404299400,1770047432510,-150.0,0.00013398,2]
[404299401,1770047432519,-2407.541,0.00013399,2]
[404299402,1770047432528,-1.8408615,0.00013399,2]
[404299403,1770047432542,-155.8911385,0.00013399,2]
[404299404,1770047432551,-299.99,0.00013399,2]
[404299406,1770047432560,-54.1188615,0.00013399,2]
[404299408,1770047432571,-1650.0,0.00013399,2]
[404299409,1770047432584,-8295.8711385,0.00013399,2]
[404299410,1770047432594,-1620.49,0.00013399,2]
[404299411,1770047432603,-22269.55402628,0.00013399,2]
[404299412,1770047432614,-714.08736785,0.00013399,2]
[404299413,1770047432625,-2345.16335082,0.00013399,2]
[404299414,1770047432644,-2376.46227803,0.00013399,2]
[404299415,1770047432658,-16159.25297702,0.00013399,2]
[404299416,1770047432667,-150.99,0.00013399,2]
[404299417,1770047432676,-9999.99,0.00013399,2]
[404299418,1770047432685,-348.16,0.00013399,2]
[404299419,1770047432695,-296.58158042,0.000134,2]
[404299420,1770047432704,-250.0,0.000134,2]
[404299421,1770047432713,-300.0,0.000134,2]
[404299422,1770047432722,-3240.0,0.00013425,2]
[404299423,1770047432732,-454.76636142,0.00013573,2]
[404299424,1770047432741,-1600.0,0.0001358,2]
[404299425,1770047432751,-371.68774008,0.00013598,2]
[404299426,1770047432760,-8434.15159253,0.00013598,2]
[404299427,1770047432770,-1036.13001289,0.00013598,2]
[404299428,1770047432779,-1057.67323337,0.00013598,2]
[404299429,1770047432790,-288.62836425,0.00013598,2]
[404299431,1770047432799,-500.0,0.00013644,2]
[404299433,1770047432808,-291.1100727,0.00013663,2]
[404299435,1770047432818,-291.1100727,0.00013663,2]
[404299437,1770047432827,-200.0,0.00013665,2]
[404299439,1770047432837,-500.0,0.00013665,2]
[404299441,1770047432847,-500.0,0.00013665,2]
[404299443,1770047432856,-500.0,0.00013665,2]
[404299445,1770047432866,-500.0,0.00013665,2]
[404299447,1770047432875,-500.0,0.00013665,2]
[404299449,1770047432885,-500.0,0.00013665,2]
[404299451,1770047432894,-500.0,0.00013665,2]
[404299453,1770047432904,-500.0,0.00013665,2]
[404299455,1770047432914,-500.0,0.00013665,2]
[404299457,1770047432923,-500.0,0.00013665,2]
[404299459,1770047432933,-500.0,0.00013665,2]
[404299461,1770047432942,-500.0,0.00013665,2]
[404299463,1770047432951,-500.0,0.00013665,2]
[404299465,1770047432961,-500.0,0.00013665,2]
[404299468,1770047432981,-500.0,0.00013665,2]
[404299470,1770047432990,-500.0,0.00013665,2]
[404299472,1770047433000,-500.0,0.00013665,2]
[404299474,1770047433010,-500.0,0.00013665,2]
[404299476,1770047433020,-500.0,0.00013665,2]
[404299478,1770047433030,-500.0,0.00013665,2]
[404299480,1770047433040,-500.0,0.00013665,2]
[404299482,1770047433051,-500.0,0.00013665,2]
[404299484,1770047433061,-500.0,0.00013665,2]
[404299486,1770047433071,-151.0,0.00013665,2]
[404299488,1770047433081,-151.0,0.00013665,2]
[404299490,1770047433091,-151.0,0.00013665,2]
[404299492,1770047433101,-151.0,0.00013665,2]
[404299494,1770047433111,-151.0,0.00013665,2]
[404299496,1770047433122,-151.0,0.00013665,2]
[404299498,1770047433132,-151.0,0.00013665,2]
[404299501,1770047433143,-151.0,0.00013665,2]
[404299502,1770047433153,-151.0,0.00013665,2]
[404299505,1770047433163,-151.0,0.00013665,2]
[404299507,1770047433174,-151.0,0.00013665,2]
[404299508,1770047433184,-200.0,0.00013665,2]
[404299511,1770047433195,-151.0,0.0001367,2]
[404299513,1770047433206,-151.0,0.0001367,2]
[404299515,1770047433216,-151.0,0.0001367,2]
[404299517,1770047433226,-500.0,0.00013672,2]
[404299519,1770047433236,-215.49321108,0.00013672,2]
[404299521,1770047433246,-500.0,0.00013672,2]
[404299523,1770047433257,-500.0,0.00013672,2]
[404299525,1770047433267,-595.00340522,0.00013672,2]
[404299527,1770047433278,-500.0,0.00013672,2]
[404299529,1770047433293,-500.0,0.00013672,2]
[404299531,1770047433303,-500.0,0.00013672,2]
[404299533,1770047433313,-500.0,0.00013672,2]
[404299535,1770047433323,-500.0,0.00013672,2]
[404299537,1770047433334,-500.0,0.00013672,2]
[404299539,1770047433344,-500.0,0.00013672,2]
[404299541,1770047433355,-500.0,0.00013672,2]
[404299543,1770047433365,-500.0,0.00013672,2]
[404299545,1770047433375,-500.0,0.00013672,2]
[404299547,1770047433385,-500.0,0.00013672,2]
[404299549,1770047433395,-500.0,0.00013672,2]
[404299551,1770047433404,-500.0,0.00013672,2]
[404299554,1770047433418,-500.0,0.00013672,2]
[404299556,1770047433429,-500.0,0.00013672,2]
[404299558,1770047433439,-500.0,0.00013672,2]
[404299560,1770047433448,-500.0,0.00013672,2]
[404299562,1770047433458,-500.0,0.00013672,2]
[404299564,1770047433467,-500.0,0.00013672,2]
[404299566,1770047433477,-500.0,0.00013672,2]
[404299568,1770047433487,-500.0,0.00013672,2]
[404299570,1770047433497,-500.0,0.00013672,2]
[404299571,1770047433506,-500.0,0.00013672,2]
[404299574,1770047433516,-500.0,0.00013672,2]
[404299576,1770047433526,-500.0,0.00013672,2]
[404299578,1770047433539,-500.0,0.00013672,2]
[404299580,1770047433548,-500.0,0.00013672,2]
[404299582,1770047433558,-500.0,0.00013672,2]
[404299583,1770047433568,-500.0,0.00013672,2]
[404299585,1770047433578,-500.0,0.00013672,2]
[404299586,1770047433588,-500.0,0.00013672,2]
[404299588,1770047433598,-500.0,0.00013672,2]
[404299590,1770047433609,-500.0,0.00013672,2]
[404299592,1770047433619,-500.0,0.00013672,2]
[404299593,1770047433629,-500.0,0.00013672,2]
[404299595,1770047433639,-500.0,0.00013672,2]
[404299597,1770047433649,-500.0,0.00013672,2]
[404299599,1770047433657,-500.0,0.00013672,2]
[404299600,1770047433665,-500.0,0.00013672,2]
[404299602,1770047433673,-500.0,0.00013672,2]
[404299604,1770047433683,-500.0,0.00013672,2]
[404299606,1770047433695,-500.0,0.00013672,2]
[404299607,1770047433705,-500.0,0.00013672,2]
[404299609,1770047433715,-500.0,0.00013672,2]
[404299611,1770047433725,-500.0,0.00013672,2]
[404299612,1770047433734,-500.0,0.00013672,2]
[404299614,1770047433744,-500.0,0.00013672,2]
[404299616,1770047433754,-500.0,0.00013672,2]
[404299617,1770047433763,-500.0,0.00013672,2]
[404299619,1770047433773,-500.0,0.00013672,2]
[404299621,1770047433784,-500.0,0.00013672,2]
[404299622,1770047433794,-500.0,0.00013672,2]
[404299624,1770047433803,-500.0,0.00013672,2]
[404299626,1770047433813,-500.0,0.00013672,2]
[404299628,1770047433823,-500.0,0.00013672,2]
[404299629,1770047433833,-500.0,0.00013672,2]
[404299631,1770047433843,-500.0,0.00013672,2]
[404299633,1770047433853,-500.0,0.00013672,2]
[404299635,1770047433863,-500.0,0.00013672,2]
[404299637,1770047433873,-500.0,0.00013672,2]
[404299639,1770047433883,-500.0,0.00013672,2]
[404299640,1770047433892,-500.0,0.00013672,2]
[404299642,1770047433902,-500.0,0.00013672,2]
[404299644,1770047433912,-500.0,0.00013672,2]
[404299646,1770047433921,-500.0,0.00013672,2]
[404299673,1770047434243,-500.0,0.00013672,2]
[404299675,1770047434253,-229.4880098,0.00013672,2]
[404299677,1770047434262,-500.0,0.00013672,2]
[404299678,1770047434272,-500.0,0.00013672,2]
[404299680,1770047434285,-500.0,0.00013672,2]
[404299682,1770047434295,-500.0,0.00013672,2]
[404299684,1770047434304,-499.99999999,0.00013672,2]
[404299686,1770047434314,-500.0,0.00013672,2]
[404299688,1770047434323,-500.0,0.00013672,2]
[404299690,1770047434332,-500.0,0.00013672,2]
[404299692,1770047434342,-500.0,0.00013672,2]
[404299693,1770047434351,-500.0,0.00013672,2]
[404299695,1770047434360,-500.0,0.00013672,2]
[404299697,1770047434371,-500.0,0.00013672,2]
[404299699,1770047434380,-500.0,0.00013672,2]
[404299701,1770047434389,-353.5,0.00013672,2]
[404299703,1770047434399,-500.0,0.00013672,2]
[404299705,1770047434408,-323.80477524,0.00013672,2]
[404299706,1770047434417,-16779.50119124,0.00013673,2]
[404299709,1770047434430,-1027.11678612,0.00013673,2]
[404299903,1770047439067,-3297.26659782,0.00013598,2]
[404299904,1770047439076,-24975.25766616,0.00013673,2]
[404299905,1770047439120,-1058.9566945,0.00013673,2]
[404299906,1770047439174,-23199.89749439,0.00013673,2]
[404299907,1770047439186,-3432959.27016759,0.00013673,2]
[404299908,1770047439196,-500.0,0.00013698,2]
[404299909,1770047439210,-500.0,0.00013698,2]
[404299910,1770047439219,-500.0,0.00013698,2]
[404299911,1770047439228,-500.0,0.00013698,2]
[404299912,1770047439238,-500.0,0.00013698,2]
[404299913,1770047439249,-500.0,0.00013698,2]
[404299914,1770047439258,-500.0,0.00013698,2]
[404299915,1770047439268,-500.0,0.00013698,2]
[404299916,1770047439278,-500.0,0.00013698,2]
[404299917,1770047439290,-500.0,0.00013698,2]
[404299918,1770047439299,-213.09371033,0.00013698,2]
[404299919,1770047439310,-586.19962979,0.00013698,2]
[404299920,1770047439319,-500.0,0.00013698,2]
[404299921,1770047439329,-500.0,0.00013698,2]
[404299922,1770047439339,-500.0,0.00013698,2]
[404299923,1770047439348,-500.0,0.00013698,2]
[404299924,1770047439357,-500.0,0.00013698,2]
[404299925,1770047439366,-500.0,0.00013698,2]
[404299926,1770047439376,-500.0,0.00013698,2]
[404299927,1770047439385,-500.0,0.00013698,2]
[404299928,1770047439394,-500.0,0.00013698,2]
[404299929,1770047439403,-500.0,0.00013698,2]
[404299930,1770047439412,-500.0,0.00013698,2]
[404299931,1770047439422,-500.0,0.00013698,2]
[404299932,1770047439431,-500.0,0.00013698,2]
[404299933,1770047439440,-500.0,0.00013698,2]
[404299934,1770047439448,-500.0,0.00013698,2]
[404299935,1770047439458,-500.0,0.00013698,2]
[404299936,1770047439467,-500.0,0.00013698,2]
[404299937,1770047439476,-505.62267861,0.00013698,2]
[404299938,1770047439485,-500.0,0.00013698,2]
[404299939,1770047439494,-500.0,0.00013698,2]
[404299940,1770047439503,-500.0,0.00013698,2]
[404299941,1770047439513,-500.0,0.00013698,2]
[404299942,1770047439522,-500.0,0.00013698,2]
[404299943,1770047439531,-500.0,0.00013698,2]
[404299944,1770047439540,-500.0,0.00013698,2]
[404299945,1770047439549,-500.0,0.00013698,2]
[404299946,1770047439558,-500.0,0.00013698,2]
[404299947,1770047439567,-500.0,0.00013698,2]
[404299949,1770047439576,-500.0,0.00013698,2]
[404299951,1770047439585,-500.0,0.00013698,2]
[404299953,1770047439594,-500.0,0.00013698,2]
[404299954,1770047439603,-317.29293236,0.00013698,2]
[404299955,1770047439613,-500.0,0.00013698,2]
[404299956,1770047439622,-500.0,0.00013698,2]
[404299957,1770047439631,-500.0,0.00013698,2]
[404299958,1770047439641,-500.0,0.00013698,2]
[404299959,1770047439650,-500.0,0.00013698,2]
[404299960,1770047439658,-500.0,0.00013698,2]
[404299961,1770047439667,-500.0,0.00013698,2]
[404299962,1770047439676,-500.0,0.00013698,2]
[404299963,1770047439685,-500.0,0.00013698,2]
[404299964,1770047439694,-500.0,0.00013698,2]
[404299965,1770047439703,-500.0,0.00013698,2]
[404299966,1770047439714,-500.0,0.00013698,2]
[404299967,1770047439723,-500.0,0.00013698,2]
[404299968,1770047439732,-500.0,0.00013698,2]
[404299969,1770047439742,-500.0,0.00013698,2]
[404299970,1770047439754,-500.0,0.00013698,2]
[404299971,1770047439764,-500.0,0.00013698,2]
[404299972,1770047439773,-500.0,0.00013698,2]
[404299973,1770047439783,-500.0,0.00013698,2]
[404299974,1770047439794,-500.0,0.00013698,2]
[404299975,1770047439804,-504.58121564,0.00013698,2]
[404299976,1770047439814,-500.0,0.00013698,2]
[404299977,1770047439823,-500.0,0.00013698,2]
[404299978,1770047439835,-500.0,0.00013698,2]
[404299979,1770047439845,-500.0,0.00013698,2]
[404299980,1770047439855,-500.0,0.00013698,2]
[404299981,1770047439866,-500.0,0.00013698,2]
[404299982,1770047439885,-512.55184272,0.00013698,2]
[404299983,1770047439901,-500.0,0.00013698,2]
[404299984,1770047439911,-500.0,0.00013698,2]
[404299985,1770047439920,-500.0,0.00013698,2]
[404299986,1770047439929,-500.0,0.00013698,2]
[404299987,1770047439939,-500.0,0.00013698,2]
[404299988,1770047439948,-500.0,0.00013698,2]
[404299989,1770047439957,-500.0,0.00013698,2]
[404299990,1770047439967,-500.0,0.00013698,2]
[404299991,1770047439976,-500.0,0.00013698,2]
[404299992,1770047439985,-500.0,0.00013698,2]
[404299993,1770047439994,-500.0,0.00013698,2]
[404299994,1770047440003,-500.0,0.00013698,2]
[404299995,1770047440013,-500.0,0.00013698,2]
[404299996,1770047440022,-500.0,0.00013698,2]
[404299997,1770047440031,-1000.0,0.00013773,2]
[404299998,1770047440044,-150.0,0.00013787,2]
[404299999,1770047440053,-8434.15159244,0.00013856,2]
[404300000,1770047440063,-500.0,0.00013872,2]
[404300001,1770047440072,-500.0,0.00013872,2]
[404300002,1770047440081,-500.0,0.00013872,2]
[404300003,1770047440091,-500.0,0.00013872,2]
[404300005,1770047440101,-500.0,0.00013872,2]
[404300007,1770047440111,-500.0,0.00013872,2]
[404300009,1770047440121,-500.0,0.00013872,2]
[404300010,1770047440130,-606.25381979,0.00013872,2]
[404300011,1770047440140,-810.96,0.00013872,2]
[404300012,1770047440150,-810.96,0.00013872,2]
[404300013,1770047440159,-810.96,0.00013872,2]
[404300014,1770047440169,-810.96,0.00013872,2]
[404300015,1770047440178,-810.96,0.00013872,2]
[404300016,1770047440187,-810.96,0.00013872,2]
[404300017,1770047440197,-810.96,0.00013872,2]
[404300018,1770047440209,-810.96,0.00013872,2]
[404300019,1770047440219,-810.96,0.00013872,2]
[404300020,1770047440228,-810.96,0.00013872,2]
[404300021,1770047440238,-810.96,0.00013872,2]
[404300022,1770047440248,-810.96,0.00013872,2]
[404300023,1770047440257,-810.96,0.00013872,2]
[404300024,1770047440267,-810.96,0.00013872,2]
[404300025,1770047440278,-810.96,0.00013872,2]
[404300026,1770047440287,-500.0,0.00013872,2]
[404300027,1770047440298,-500.0,0.00013872,2]
[404300029,1770047440307,-312.15594151,0.00013872,2]
[404300031,1770047440316,-500.0,0.00013872,2]
[404300033,1770047440325,-500.0,0.00013872,2]
[404300035,1770047440334,-500.0,0.00013872,2]
[404300037,1770047440343,-500.0,0.00013872,2]
[404300039,1770047440352,-500.0,0.00013872,2]
[404300041,1770047440361,-500.0,0.00013872,2]
[404300043,1770047440370,-500.0,0.00013872,2]
[404300045,1770047440380,-500.0,0.00013872,2]
[404300046,1770047440388,-500.0,0.00013872,2]
[404300047,1770047440397,-500.0,0.00013872,2]
[404300048,1770047440406,-500.0,0.00013872,2]
[404300049,1770047440415,-500.0,0.00013872,2]
[404300050,1770047440424,-500.0,0.00013872,2]
[404300051,1770047440434,-500.0,0.00013872,2]
[404300052,1770047440444,-484.38526317,0.00013872,2]
[404300053,1770047440453,-535.53919898,0.00013872,2]
[404300054,1770047440462,-500.0,0.00013872,2]
[404300055,1770047440471,-500.0,0.00013973,2]
[404300056,1770047440480,-500.0,0.00013973,2]
[404300057,1770047440490,-500.0,0.00013973,2]
[404300058,1770047440498,-500.0,0.00013973,2]
[404300059,1770047440508,-544.91692471,0.00013973,2]
[404300060,1770047440517,-500.0,0.00013973,2]
[404300061,1770047440526,-170.36367963,0.00013973,2]
[404300062,1770047440535,-500.0,0.00013973,2]
[404300063,1770047440544,-500.0,0.00013973,2]
[404300064,1770047440553,-500.0,0.00013973,2]
[404300065,1770047440563,-500.0,0.00013973,2]
[404300066,1770047440572,-500.0,0.00013973,2]
[404300067,1770047440581,-500.0,0.00013973,2]
[404300068,1770047440590,-543.12258786,0.00013973,2]
[404300069,1770047440600,-500.0,0.00013973,2]
[404300070,1770047440609,-164.70227396,0.00013973,2]
[404300071,1770047440618,-500.0,0.00013973,2]
[404300072,1770047440627,-500.0,0.00013973,2]
[404300073,1770047440636,-500.12230816,0.00013973,2]
[404300074,1770047440646,-500.0,0.00013973,2]
[404300075,1770047440656,-500.0,0.00013973,2]
[404300076,1770047440665,-500.0,0.00013973,2]
[404300077,1770047440675,-500.0,0.00013973,2]
[404300078,1770047440684,-8434.15159244,0.00014114,2]
[404300079,1770047440694,-300.06,0.00014164,2]
[404300080,1770047440703,-1057.6732333,0.00014213,2]
[404300081,1770047440712,-200.0,0.00014213,2]
[404300082,1770047440721,-500.0,0.00014213,2]
[404300083,1770047440730,-257.65826531,0.00014213,2]
[404300084,1770047440740,-151.0,0.00014245,2]
[404300085,1770047440749,-810.96,0.00014247,2]
[404300086,1770047440758,-810.96,0.00014247,2]
[404300087,1770047440767,-810.96,0.00014247,2]
[404300088,1770047440776,-810.96,0.00014247,2]
[404300089,1770047440785,-280.89695506,0.00014247,2]
[404300091,1770047440795,-500.0,0.00014247,2]
[404300092,1770047440804,-500.0,0.00014247,2]
[404300093,1770047440813,-500.0,0.00014247,2]
[404300094,1770047440822,-500.0,0.00014247,2]
[404300095,1770047440831,-500.0,0.00014247,2]
[404300096,1770047440840,-500.0,0.00014247,2]
[404300097,1770047440848,-464.45410109,0.00014247,2]
[404300098,1770047440858,-984767.6168,0.00014248,2]
[404300099,1770047440867,-313.45864486,0.00014255,2]
[404300100,1770047440876,-454.76636139,0.00014294,2]
[404300101,1770047440885,-8434.15159244,0.00014372,2]
[404300102,1770047440894,-151.0,0.00014404,2]
[404300103,1770047440903,-151.0,0.00014404,2]
[404300104,1770047440912,-256.26,0.00014422,2]
[404300105,1770047440921,-1680.0,0.00014465,2]
[404300106,1770047440931,-500.0,0.00014493,2]
[404300107,1770047440941,-255.0,0.0001451,2]
[404300108,1770047440950,-1000.0,0.00014521,2]
[404300109,1770047440959,-1000.0,0.00014521,2]
[404300110,1770047440968,-1000.0,0.00014521,2]
[404300111,1770047440977,-1000.0,0.00014521,2]
[404300112,1770047440986,-500.0,0.00014521,2]
[404300113,1770047440995,-1000.0,0.00014521,2]
[404300114,1770047441004,-156.95111861,0.00014521,2]
[404300115,1770047441014,-1000.0,0.00014521,2]
[404300116,1770047441024,-911.8365552,0.00014521,2]
[404300117,1770047441033,-501.171316,0.00014521,2]
[404300118,1770047441043,-1082.73923754,0.00014521,2]
[404300119,1770047441052,-1020.60707483,0.00014521,2]
[404300120,1770047441062,-541.75073303,0.00014521,2]
[404300121,1770047441071,-546.2635897,0.00014521,2]
[404300122,1770047441080,-1000.0,0.00014521,2]
[404300123,1770047441090,-1000.0,0.00014521,2]
[404300124,1770047441099,-1000.0,0.00014521,2]
[404300125,1770047441109,-151.0,0.00014555,2]
[404300126,1770047441118,-151.0,0.00014555,2]
[404300127,1770047441128,-151.0,0.00014577,2]
[404300128,1770047441138,-613.93852795,0.00014599,2]
[404300129,1770047441148,-1620.19348872,0.00014599,2]
[404300130,1770047441157,-2858.21336177,0.00014599,2]
[404300131,1770047441166,-8434.15159244,0.0001463,2]
[404300132,1770047441175,-151.0,0.0001466,2]
[404300133,1770047441185,-371.68774004,0.00014674,2]
[404300134,1770047441194,-420.0,0.00014686,2]
[404300135,1770047441205,-200.0,0.00014761,2]
[404300136,1770047441215,-500.0,0.00014761,2]
[404300137,1770047441224,-500.0,0.00014795,2]
[404300138,1770047441233,-1057.6732333,0.00014827,2]
[404300139,1770047441243,-35759.0,0.00014851,2]
[404300140,1770047441252,-151.33,0.00014868,2]
[404300141,1770047441262,-8434.15159244,0.00014889,2]
[404300142,1770047441271,-151.0,0.00014896,2]
[404300143,1770047441283,-454.76636139,0.00015015,2]
[404300144,1770047441294,-1500.0,0.00015068,2]
[404300145,1770047441304,-987.48417293,0.00015068,2]
[404300146,1770047441323,-617.67942522,0.00015068,2]
[404300147,1770047441335,-1500.0,0.00015068,2]
[404300148,1770047441345,-669.47739756,0.00015068,2]
[404300149,1770047441355,-1500.0,0.00015068,2]
[404300150,1770047441365,-1500.0,0.00015068,2]
[404300151,1770047441374,-1500.0,0.00015068,2]
[404300152,1770047441384,-854.38080813,0.00015068,2]
[404300153,1770047441394,-900.0,0.00015068,2]
[404300154,1770047441403,-4275.7162507,0.00015099,2]
[404300155,1770047441413,-151.0,0.00015124,2]
[404300156,1770047441422,-151.0,0.00015124,2]
[404300157,1770047441431,-151.0,0.00015141,2]
[404300158,1770047441440,-10662.6919,0.00015141,2]
[404300159,1770047441450,-8434.15159244,0.00015147,2]